[Event "*** SCC Grand Prix: Titled Tuesday Blitz"]
[Site "Chess.com"]
[Date "2020.06.09"]
[Round "5"]
[White "Treacherous_horse64"]
[Black "MF1966Idrisov"]
[Result "1-0"]
[WhiteElo "2445"]
[BlackElo "2277"]
[TimeControl "180+1"]
[EndTime "9:59:07 PDT"]
[Termination "Treacherous_horse64 won on time"]

1. d4 {[%clk 0:02:39.5]} 1... d6 {[%clk 0:02:59.3]} 2. e4 {[%clk 0:02:36.5]}
2... Nf6 {[%clk 0:02:58.3]} 3. Nc3 {[%clk 0:02:35.5]} 3... g6 {[%clk 0:02:58.4]}
4. Bc4 {[%clk 0:02:33.4]} 4... Bg7 {[%clk 0:02:58.3]} 5. Qe2 {[%clk 0:02:30.2]}
5... e5 {[%clk 0:02:55]} 6. dxe5 {[%clk 0:02:28.7]} 6... dxe5 {[%clk 0:02:54.8]}
7. Nf3 {[%clk 0:02:29.3]} 7... Nbd7 {[%clk 0:02:40.3]} 8. O-O {[%clk 0:02:24]}
8... O-O {[%clk 0:02:39.4]} 9. Bg5 {[%clk 0:02:24.3]} 9... c6 {[%clk 0:02:34.3]}
10. a4 {[%clk 0:02:20]} 10... a5 {[%clk 0:02:32.9]} 11. Rfd1 {[%clk 0:02:15.8]}
11... Qc7 {[%clk 0:02:32.8]} 12. Qd2 {[%clk 0:02:08.2]} 12... Re8 {[%clk
0:02:28.8]} 13. Bh6 {[%clk 0:02:04.3]} 13... Nf8 {[%clk 0:02:25.2]} 14. Bxg7
{[%clk 0:01:59.2]} 14... Kxg7 {[%clk 0:02:24.2]} 15. h3 {[%clk 0:01:43.5]} 15...
Be6 {[%clk 0:02:22.9]} 16. Qe2 {[%clk 0:01:42.5]} 16... Bxc4 {[%clk 0:02:17.5]}
17. Qxc4 {[%clk 0:01:43.4]} 17... Ne6 {[%clk 0:02:17.4]} 18. Ne2 {[%clk
0:01:27.6]} 18... Rad8 {[%clk 0:02:11.9]} 19. Ng3 {[%clk 0:01:16.3]} 19... h6
{[%clk 0:01:39.5]} 20. Qc3 {[%clk 0:01:06.3]} 20... Nf4 {[%clk 0:01:32.7]} 21.
Rxd8 {[%clk 0:00:48.8]} 21... Qxd8 {[%clk 0:01:30.2]} 22. Nxe5 {[%clk
0:00:44.7]} 22... h5 {[%clk 0:01:18.1]} 23. h4 {[%clk 0:00:35]} 23... Kg8 {[%clk
0:01:03.4]} 24. Re1 {[%clk 0:00:29.7]} 24... Ng4 {[%clk 0:00:50.1]} 25. Nxg4
{[%clk 0:00:28.8]} 25... hxg4 {[%clk 0:00:50.1]} 26. Qe3 {[%clk 0:00:26.8]}
26... Ne6 {[%clk 0:00:35.3]} 27. Qh6 {[%clk 0:00:26.2]} 27... Qf6 {[%clk
0:00:32.8]} 28. c3 {[%clk 0:00:25.5]} 28... Rd8 {[%clk 0:00:25.5]} 29. e5 {[%clk
0:00:25.4]} 29... Qf4 {[%clk 0:00:24.8]} 30. Qxf4 {[%clk 0:00:20.2]} 30... Nxf4
{[%clk 0:00:24.9]} 31. Ne4 {[%clk 0:00:20.6]} 31... Rd3 {[%clk 0:00:19.2]} 32.
g3 {[%clk 0:00:15]} 32... Ne6 {[%clk 0:00:18.6]} 33. Re2 {[%clk 0:00:14.8]}
33... Kg7 {[%clk 0:00:18.3]} 34. Nf6 {[%clk 0:00:14.9]} 34... Rd1+ {[%clk
0:00:18.2]} 35. Kg2 {[%clk 0:00:15]} 35... Nc5 {[%clk 0:00:18.2]} 36. Nxg4
{[%clk 0:00:14.8]} 36... Nd3 {[%clk 0:00:17.3]} 37. e6 {[%clk 0:00:10.3]} 37...
Ne1+ {[%clk 0:00:16.6]} 38. Kh2 {[%clk 0:00:09.3]} 38... fxe6 {[%clk 0:00:16]}
39. Rxe6 {[%clk 0:00:08.7]} 39... Nf3+ {[%clk 0:00:16]} 40. Kg2 {[%clk
0:00:08.3]} 40... Ne1+ {[%clk 0:00:16]} 41. Kh3 {[%clk 0:00:08.7]} 41... Nd3
{[%clk 0:00:14.9]} 42. Re7+ {[%clk 0:00:08.4]} 42... Kf8 {[%clk 0:00:14.8]} 43.
Rxb7 {[%clk 0:00:09.3]} 43... Rd2 {[%clk 0:00:14.1]} 44. Kg2 {[%clk 0:00:08.8]}
44... Nxb2 {[%clk 0:00:13.4]} 45. Nf6 {[%clk 0:00:05.8]} 45... Nxa4 {[%clk
0:00:13]} 46. Kf3 {[%clk 0:00:05.2]} 46... Nxc3 {[%clk 0:00:12.9]} 47. Kf4
{[%clk 0:00:05.1]} 47... Nd5+ {[%clk 0:00:12.8]} 48. Nxd5 {[%clk 0:00:04.3]}
48... Rxd5 {[%clk 0:00:09.4]} 49. f3 {[%clk 0:00:04.4]} 49... a4 {[%clk
0:00:08.3]} 50. Ra7 {[%clk 0:00:04.7]} 50... Rd4+ {[%clk 0:00:08.3]} 51. Kg5
{[%clk 0:00:04.6]} 51... Rd3 {[%clk 0:00:08.5]} 52. Kg4 {[%clk 0:00:04.5]} 52...
Rd4+ {[%clk 0:00:08.2]} 53. f4 {[%clk 0:00:03.7]} 53... Rd5 {[%clk 0:00:07.7]}
54. Rxa4 {[%clk 0:00:03.3]} 54... Kg7 {[%clk 0:00:07.8]} 55. Ra6 {[%clk
0:00:03]} 55... c5 {[%clk 0:00:05.7]} 56. Rc6 {[%clk 0:00:03.4]} 56... Kh7
{[%clk 0:00:06.6]} 57. Rc7+ {[%clk 0:00:02.9]} 57... Kh6 {[%clk 0:00:07.5]} 58.
Kh3 {[%clk 0:00:03.5]} 58... Rd3 {[%clk 0:00:06.5]} 59. Kg2 {[%clk 0:00:03.4]}
59... Rd1 {[%clk 0:00:06.9]} 60. Kf3 {[%clk 0:00:03.7]} 60... Rd2 {[%clk
0:00:07.8]} 61. Rxc5 {[%clk 0:00:03.5]} 61... Rh2 {[%clk 0:00:08.3]} 62. Kg4
{[%clk 0:00:03.9]} 62... Rh1 {[%clk 0:00:08.6]} 63. Rg5 {[%clk 0:00:04.4]} 63...
Kg7 {[%clk 0:00:08.5]} 64. f5 {[%clk 0:00:04.8]} 64... Kh7 {[%clk 0:00:08.6]}
65. Rxg6 {[%clk 0:00:05.7]} 65... Rf1 {[%clk 0:00:09]} 66. Rg5 {[%clk
0:00:06.2]} 66... Rf2 {[%clk 0:00:09.2]} 67. Kh5 {[%clk 0:00:06.3]} 67... Rf1
{[%clk 0:00:09.3]} 68. g4 {[%clk 0:00:06.8]} 68... Rf2 {[%clk 0:00:09.4]} 69.
Rg6 {[%clk 0:00:07.2]} 69... Kh8 {[%clk 0:00:08.7]} 70. Rb6 {[%clk 0:00:07.7]}
70... Re2 {[%clk 0:00:08.4]} 71. Kg6 {[%clk 0:00:08.2]} 71... Re8 {[%clk
0:00:07.6]} 72. g5 {[%clk 0:00:08.7]} 72... Rg8+ {[%clk 0:00:07.3]} 73. Kh6
{[%clk 0:00:08.2]} 73... Rf8 {[%clk 0:00:07]} 74. Rb7 {[%clk 0:00:07.5]} 74...
Rd8 {[%clk 0:00:06.4]} 75. f6 {[%clk 0:00:07.8]} 75... Kg8 {[%clk 0:00:06.3]}
76. g6 {[%clk 0:00:08.2]} 76... Rc8 {[%clk 0:00:05.6]} 77. h5 {[%clk 0:00:08.5]}
77... Rd8 {[%clk 0:00:05.4]} 78. Rh7 {[%clk 0:00:08.7]} 1-0

[Event "*** SCC Grand Prix: Titled Tuesday Blitz"]
[Site "Chess.com"]
[Date "2020.06.09"]
[Round "5"]
[White "ketster"]
[Black "Leonid_Starozhilov"]
[Result "1/2-1/2"]
[WhiteElo "2461"]
[BlackElo "2705"]
[TimeControl "180+1"]
[EndTime "9:59:21 PDT"]
[Termination "Game drawn by stalemate"]

1. d4 {[%clk 0:03:00.9]} 1... Nf6 {[%clk 0:02:59.8]} 2. c4 {[%clk 0:03:00.3]}
2... g6 {[%clk 0:03:00.1]} 3. Nc3 {[%clk 0:02:59.2]} 3... Bg7 {[%clk 0:02:58.7]}
4. e4 {[%clk 0:02:58.8]} 4... d6 {[%clk 0:02:58.8]} 5. Nf3 {[%clk 0:02:56.8]}
5... Bg4 {[%clk 0:02:58.1]} 6. h3 {[%clk 0:02:57.3]} 6... Bxf3 {[%clk
0:02:57.8]} 7. Qxf3 {[%clk 0:02:57.1]} 7... Nc6 {[%clk 0:02:58.4]} 8. d5 {[%clk
0:02:53.8]} 8... Nd4 {[%clk 0:02:58.1]} 9. Qd1 {[%clk 0:02:53.7]} 9... c5 {[%clk
0:02:56.1]} 10. dxc6 {[%clk 0:02:38.9]} 10... Nxc6 {[%clk 0:02:55.4]} 11. Be3
{[%clk 0:02:38.9]} 11... Qa5 {[%clk 0:02:53.2]} 12. Qd2 {[%clk 0:02:32]} 12...
Rc8 {[%clk 0:02:42.1]} 13. Rc1 {[%clk 0:02:23.2]} 13... O-O {[%clk 0:02:35.4]}
14. Be2 {[%clk 0:02:21.6]} 14... a6 {[%clk 0:02:23.2]} 15. O-O {[%clk
0:02:14.5]} 15... Rfe8 {[%clk 0:02:22.8]} 16. f4 {[%clk 0:02:13.1]} 16... b5
{[%clk 0:02:02.1]} 17. cxb5 {[%clk 0:02:02.3]} 17... axb5 {[%clk 0:02:00.8]} 18.
a3 {[%clk 0:01:57.7]} 18... b4 {[%clk 0:01:58.9]} 19. axb4 {[%clk 0:01:56.3]}
19... Qxb4 {[%clk 0:01:51.2]} 20. Bf3 {[%clk 0:01:50.9]} 20... Na5 {[%clk
0:01:47.6]} 21. Qe2 {[%clk 0:00:52.9]} 21... Nc4 {[%clk 0:01:36.9]} 22. Bf2
{[%clk 0:00:48.8]} 22... Qxb2 {[%clk 0:01:07.5]} 23. Rc2 {[%clk 0:00:47.4]}
23... Qa3 {[%clk 0:00:56.8]} 24. e5 {[%clk 0:00:44.3]} 24... dxe5 {[%clk
0:00:50.9]} 25. fxe5 {[%clk 0:00:43.7]} 25... Nxe5 {[%clk 0:00:47.3]} 26. Qxe5
{[%clk 0:00:31.5]} 26... Ng4 {[%clk 0:00:46.7]} 27. Nb5 {[%clk 0:00:15.2]} 27...
Nxe5 {[%clk 0:00:14.5]} 28. Nxa3 {[%clk 0:00:14.4]} 28... Nxf3+ {[%clk
0:00:11.3]} 29. gxf3 {[%clk 0:00:13.9]} 29... Ra8 {[%clk 0:00:11.9]} 30. Nc4
{[%clk 0:00:13.7]} 30... Rec8 {[%clk 0:00:12.1]} 31. Rfc1 {[%clk 0:00:13.8]}
31... Bf6 {[%clk 0:00:11.3]} 32. Ne3 {[%clk 0:00:13.4]} 32... Rd8 {[%clk
0:00:08]} 33. Kg2 {[%clk 0:00:13.5]} 33... h5 {[%clk 0:00:08.2]} 34. Rd1 {[%clk
0:00:13.4]} 34... Rxd1 {[%clk 0:00:06.2]} 35. Nxd1 {[%clk 0:00:12.3]} 35... e6
{[%clk 0:00:06.6]} 36. Ne3 {[%clk 0:00:12.2]} 36... Kg7 {[%clk 0:00:06]} 37. Nc4
{[%clk 0:00:12.2]} 37... Rd8 {[%clk 0:00:06.1]} 38. Rd2 {[%clk 0:00:11.5]} 38...
Rc8 {[%clk 0:00:05.1]} 39. Nd6 {[%clk 0:00:11.5]} 39... Ra8 {[%clk 0:00:05]} 40.
Ne4 {[%clk 0:00:11.7]} 40... Be5 {[%clk 0:00:05.5]} 41. Rd7 {[%clk 0:00:11.7]}
41... Ra2 {[%clk 0:00:04.3]} 42. Rd2 {[%clk 0:00:11.4]} 42... Rxd2 {[%clk
0:00:03.9]} 43. Nxd2 {[%clk 0:00:10.5]} 43... g5 {[%clk 0:00:04.4]} 44. Be3
{[%clk 0:00:09.5]} 44... Kg6 {[%clk 0:00:04.5]} 45. Ne4 {[%clk 0:00:09.7]} 45...
f6 {[%clk 0:00:04.2]} 46. Bd2 {[%clk 0:00:07.9]} 46... Bc7 {[%clk 0:00:04.2]}
47. Nc5 {[%clk 0:00:07.7]} 47... Kf7 {[%clk 0:00:03.9]} 48. Kf2 {[%clk
0:00:07.5]} 48... Bd6 {[%clk 0:00:03.5]} 49. Be3 {[%clk 0:00:07.6]} 49... f5
{[%clk 0:00:02.9]} 50. Ke2 {[%clk 0:00:07.8]} 50... Be7 {[%clk 0:00:03.2]} 51.
Bg1 {[%clk 0:00:07.6]} 51... g4 {[%clk 0:00:03.6]} 52. hxg4 {[%clk 0:00:07.3]}
52... hxg4 {[%clk 0:00:04.4]} 53. f4 {[%clk 0:00:06.4]} 53... Bd6 {[%clk
0:00:04.4]} 54. Nd3 {[%clk 0:00:06.4]} 54... Kf6 {[%clk 0:00:04.3]} 55. Bd4+
{[%clk 0:00:05.8]} 55... Kg6 {[%clk 0:00:04.9]} 56. Kf2 {[%clk 0:00:05.9]} 56...
Kh5 {[%clk 0:00:04.6]} 57. Kg3 {[%clk 0:00:06]} 57... Kg6 {[%clk 0:00:04.8]} 58.
Ne5+ {[%clk 0:00:05.4]} 58... Kh7 {[%clk 0:00:03.8]} 59. Kh4 {[%clk 0:00:05.2]}
59... Be7+ {[%clk 0:00:03.5]} 60. Kh5 {[%clk 0:00:05]} 60... Bf6 {[%clk
0:00:03]} 61. Bf2 {[%clk 0:00:03.9]} 61... Kg7 {[%clk 0:00:02]} 62. Bg3 {[%clk
0:00:03.6]} 62... Be7 {[%clk 0:00:02.2]} 63. Nc6 {[%clk 0:00:03.3]} 63... Bd6
{[%clk 0:00:02.5]} 64. Ne5 {[%clk 0:00:03.5]} 64... Kf6 {[%clk 0:00:02.5]} 65.
Ng6 {[%clk 0:00:02.5]} 65... Bc5 {[%clk 0:00:02.2]} 66. Ne5 {[%clk 0:00:02.9]}
66... Bd4 {[%clk 0:00:02.3]} 67. Nc6 {[%clk 0:00:03]} 67... Be3 {[%clk
0:00:02.6]} 68. Kh6 {[%clk 0:00:02.9]} 68... Kf7 {[%clk 0:00:02.4]} 69. Ne5+
{[%clk 0:00:03.2]} 69... Ke7 {[%clk 0:00:02.9]} 70. Kg6 {[%clk 0:00:03.2]} 70...
Bd2 {[%clk 0:00:02.6]} 71. Kg7 {[%clk 0:00:03.4]} 71... Bc1 {[%clk 0:00:03.1]}
72. Kg6 {[%clk 0:00:03.4]} 72... Kd6 {[%clk 0:00:03.6]} 73. Kf6 {[%clk
0:00:03.1]} 73... Kd5 {[%clk 0:00:04.2]} 74. Nf7 {[%clk 0:00:02.6]} 74... Ke4
{[%clk 0:00:04.4]} 75. Ng5+ {[%clk 0:00:02.9]} 75... Kd5 {[%clk 0:00:04.6]} 76.
Nxe6 {[%clk 0:00:02.6]} 76... Ke4 {[%clk 0:00:04.4]} 77. Ng5+ {[%clk 0:00:02.6]}
77... Ke3 {[%clk 0:00:04.5]} 78. Kxf5 {[%clk 0:00:02.9]} 78... Ke2 {[%clk
0:00:05.1]} 79. Kxg4 {[%clk 0:00:03.2]} 79... Bxf4 {[%clk 0:00:05.2]} 80. Bxf4
{[%clk 0:00:03.3]} 80... Kd3 {[%clk 0:00:06.1]} 81. Nf3 {[%clk 0:00:03.4]} 81...
Kc4 {[%clk 0:00:07]} 82. Kf5 {[%clk 0:00:03.5]} 82... Kb5 {[%clk 0:00:07.9]} 83.
Ke5 {[%clk 0:00:03.7]} 83... Kc6 {[%clk 0:00:08.8]} 84. Be3 {[%clk 0:00:04.2]}
84... Kb7 {[%clk 0:00:09.7]} 85. Nd4 {[%clk 0:00:04.4]} 85... Ka8 {[%clk
0:00:10.6]} 86. Kd5 {[%clk 0:00:04.5]} 86... Kb7 {[%clk 0:00:11.5]} 87. Bf4
{[%clk 0:00:04.8]} 87... Ka6 {[%clk 0:00:12.4]} 88. Nc6 {[%clk 0:00:04.8]} 88...
Kb7 {[%clk 0:00:13.3]} 89. Kc5 {[%clk 0:00:04.4]} 89... Ka8 {[%clk 0:00:14.2]}
90. Be5 {[%clk 0:00:04.4]} 90... Kb7 {[%clk 0:00:15.1]} 91. Kd6 {[%clk 0:00:04]}
91... Ka8 {[%clk 0:00:16]} 92. Bd4 {[%clk 0:00:04.1]} 92... Kb7 {[%clk
0:00:16.9]} 93. Kd7 {[%clk 0:00:03.9]} 93... Ka8 {[%clk 0:00:17.8]} 94. Be3
{[%clk 0:00:02.8]} 94... Kb7 {[%clk 0:00:18.7]} 95. Nd8+ {[%clk 0:00:02.7]}
95... Ka8 {[%clk 0:00:19.6]} 96. Kc7 {[%clk 0:00:01.8]} 1/2-1/2

[Event "*** SCC Grand Prix: Titled Tuesday Blitz"]
[Site "Chess.com"]
[Date "2020.06.09"]
[Round "6"]
[White "smshk35"]
[Black "Slovak_fighter2000"]
[Result "0-1"]
[WhiteElo "2318"]
[BlackElo "2448"]
[TimeControl "180+1"]
[EndTime "10:00:58 PDT"]
[Termination "Slovak_fighter2000 won by resignation"]

1. e4 {[%clk 0:03:00.9]} 1... c5 {[%clk 0:02:59.2]} 2. Nf3 {[%clk 0:03:00.9]}
2... Nc6 {[%clk 0:02:58.6]} 3. d4 {[%clk 0:03:00.9]} 3... cxd4 {[%clk
0:02:59.5]} 4. Nxd4 {[%clk 0:03:01.8]} 4... g6 {[%clk 0:02:59.9]} 5. c4 {[%clk
0:03:01.1]} 5... Bg7 {[%clk 0:03:00.3]} 6. Nc2 {[%clk 0:02:59.6]} 6... Nf6
{[%clk 0:03:00.3]} 7. Nc3 {[%clk 0:02:59.9]} 7... d6 {[%clk 0:03:00.6]} 8. f3
{[%clk 0:02:58.7]} 8... O-O {[%clk 0:03:01.1]} 9. Be3 {[%clk 0:02:59]} 9... a6
{[%clk 0:03:01.5]} 10. Be2 {[%clk 0:02:58]} 10... Be6 {[%clk 0:02:58.1]} 11. O-O
{[%clk 0:02:56.5]} 11... Rc8 {[%clk 0:02:57.1]} 12. Rc1 {[%clk 0:02:54.2]} 12...
Nd7 {[%clk 0:02:55]} 13. Qd2 {[%clk 0:02:49.8]} 13... Re8 {[%clk 0:02:51.5]} 14.
b3 {[%clk 0:02:47.8]} 14... Qa5 {[%clk 0:02:49.8]} 15. a4 {[%clk 0:02:39.1]}
15... Qxc3 {[%clk 0:02:46.3]} 0-1

[Event "*** SCC Grand Prix: Titled Tuesday Blitz"]
[Site "Chess.com"]
[Date "2020.06.09"]
[Round "6"]
[White "Saloni1299"]
[Black "Maksimus1998"]
[Result "0-1"]
[WhiteElo "2250"]
[BlackElo "2511"]
[TimeControl "180+1"]
[EndTime "10:01:52 PDT"]
[Termination "Maksimus1998 won by resignation"]

1. e4 {[%clk 0:03:00.9]} 1... c5 {[%clk 0:02:59.6]} 2. Nf3 {[%clk 0:03:00.4]}
2... g6 {[%clk 0:02:59.4]} 3. d4 {[%clk 0:03:00.4]} 3... cxd4 {[%clk 0:02:59.3]}
4. Nxd4 {[%clk 0:03:00.6]} 4... Bg7 {[%clk 0:02:59.6]} 5. Nc3 {[%clk 0:03:01.2]}
5... Nc6 {[%clk 0:02:58.8]} 6. Be3 {[%clk 0:03:00.9]} 6... Nf6 {[%clk 0:02:54]}
7. Bc4 {[%clk 0:03:00.7]} 7... O-O {[%clk 0:02:52.4]} 8. Bb3 {[%clk 0:02:59.3]}
8... Qa5 {[%clk 0:02:49.6]} 9. O-O {[%clk 0:02:59.3]} 9... d6 {[%clk 0:02:44.5]}
10. h3 {[%clk 0:02:58.6]} 10... a6 {[%clk 0:02:43]} 11. f4 {[%clk 0:02:58.1]}
11... Nxd4 {[%clk 0:02:30.4]} 12. Bxd4 {[%clk 0:02:58]} 12... Be6 {[%clk
0:02:31.1]} 13. e5 {[%clk 0:02:41.7]} 13... dxe5 {[%clk 0:02:28]} 14. Bxe5
{[%clk 0:02:39.4]} 14... Rad8 {[%clk 0:02:21.8]} 15. Qe2 {[%clk 0:02:39.4]}
15... Bxb3 {[%clk 0:02:21.5]} 16. axb3 {[%clk 0:02:38.8]} 16... Qb6+ {[%clk
0:02:21.9]} 17. Kh1 {[%clk 0:02:38.2]} 17... Nh5 {[%clk 0:02:13.9]} 18. Bxg7
{[%clk 0:02:35.2]} 18... Ng3+ {[%clk 0:02:13.6]} 19. Kh2 {[%clk 0:02:31]} 19...
Nxe2 {[%clk 0:02:12.7]} 0-1

[Event "*** SCC Grand Prix: Titled Tuesday Blitz"]
[Site "Chess.com"]
[Date "2020.06.09"]
[Round "6"]
[White "alexrustemov"]
[Black "Shivagami"]
[Result "1-0"]
[WhiteElo "2679"]
[BlackElo "2263"]
[TimeControl "180+1"]
[EndTime "10:02:31 PDT"]
[Termination "alexrustemov won by resignation"]

1. d4 {[%clk 0:03:00.9]} 1... Nf6 {[%clk 0:02:54.1]} 2. c4 {[%clk 0:03:00.1]}
2... c5 {[%clk 0:02:52.5]} 3. Nf3 {[%clk 0:02:57.1]} 3... cxd4 {[%clk
0:02:41.2]} 4. Nxd4 {[%clk 0:02:58]} 4... d5 {[%clk 0:02:40.1]} 5. cxd5 {[%clk
0:02:55.2]} 5... Nxd5 {[%clk 0:02:35.6]} 6. e4 {[%clk 0:02:53.8]} 6... Nb6
{[%clk 0:02:33.8]} 7. Bb5+ {[%clk 0:02:33.1]} 7... Bd7 {[%clk 0:02:30.1]} 8. O-O
{[%clk 0:02:31.7]} 8... g6 {[%clk 0:02:26.5]} 9. Be3 {[%clk 0:02:15.5]} 9... Bg7
{[%clk 0:02:25]} 10. Nc3 {[%clk 0:02:12.7]} 10... O-O {[%clk 0:02:22.2]} 11. Rc1
{[%clk 0:02:06.6]} 11... a6 {[%clk 0:02:17.2]} 12. Be2 {[%clk 0:02:02.8]} 12...
Nc6 {[%clk 0:02:11.3]} 13. Nxc6 {[%clk 0:02:01.2]} 13... bxc6 {[%clk 0:02:03.4]}
14. Bxb6 {[%clk 0:01:57.6]} 1-0

[Event "*** SCC Grand Prix: Titled Tuesday Blitz"]
[Site "Chess.com"]
[Date "2020.06.09"]
[Round "6"]
[White "viktorskliarov"]
[Black "ElviraBerend"]
[Result "1-0"]
[WhiteElo "2592"]
[BlackElo "2396"]
[TimeControl "180+1"]
[EndTime "10:02:46 PDT"]
[Termination "viktorskliarov won by resignation"]

1. e4 {[%clk 0:02:59.7]} 1... e5 {[%clk 0:01:36.2]} 2. Nc3 {[%clk 0:02:58.7]}
2... Nc6 {[%clk 0:01:35.4]} 3. Bc4 {[%clk 0:02:58.9]} 3... Bc5 {[%clk
0:01:34.5]} 4. Qg4 {[%clk 0:02:58.1]} 4... g6 {[%clk 0:01:21.6]} 5. Qf3 {[%clk
0:02:52.3]} 5... Nf6 {[%clk 0:01:19.1]} 6. Nge2 {[%clk 0:02:52.8]} 6... O-O
{[%clk 0:01:18.3]} 7. d3 {[%clk 0:02:49.1]} 7... d6 {[%clk 0:01:18.2]} 8. Bg5
{[%clk 0:02:41]} 8... Kg7 {[%clk 0:00:50.4]} 9. Nd5 {[%clk 0:02:40.3]} 9... Nxd5
{[%clk 0:00:50.3]} 10. Bxd8 {[%clk 0:02:39.9]} 10... Rxd8 {[%clk 0:00:48.5]} 11.
Bxd5 {[%clk 0:02:37.8]} 1-0

[Event "*** SCC Grand Prix: Titled Tuesday Blitz"]
[Site "Chess.com"]
[Date "2020.06.09"]
[Round "6"]
[White "letsgoband"]
[Black "attack2mateU"]
[Result "1-0"]
[WhiteElo "2450"]
[BlackElo "2701"]
[TimeControl "180+1"]
[EndTime "10:03:04 PDT"]
[Termination "letsgoband won by resignation"]

1. e4 {[%clk 0:03:00.9]} 1... c5 {[%clk 0:02:59.4]} 2. Nf3 {[%clk 0:02:59.4]}
2... d6 {[%clk 0:02:59.5]} 3. d4 {[%clk 0:02:58.9]} 3... cxd4 {[%clk 0:03:00.4]}
4. Nxd4 {[%clk 0:02:59]} 4... Nf6 {[%clk 0:03:00.6]} 5. Nc3 {[%clk 0:02:59.4]}
5... a6 {[%clk 0:03:00.8]} 6. Bg5 {[%clk 0:02:59.9]} 6... e6 {[%clk 0:02:59.2]}
7. f4 {[%clk 0:03:00.1]} 7... Be7 {[%clk 0:02:56.9]} 8. Qf3 {[%clk 0:02:57.7]}
8... Nbd7 {[%clk 0:02:50.7]} 9. O-O-O {[%clk 0:02:56.6]} 9... b5 {[%clk
0:02:48.1]} 10. e5 {[%clk 0:02:41.2]} 10... dxe5 {[%clk 0:02:39.9]} 11. fxe5
{[%clk 0:02:33.1]} 11... Nd5 {[%clk 0:02:32.1]} 12. Bxe7 {[%clk 0:02:31.9]}
12... Qxe7 {[%clk 0:02:31.9]} 13. Nxd5 {[%clk 0:02:31.4]} 13... exd5 {[%clk
0:02:31.3]} 14. Qxd5 {[%clk 0:02:31]} 14... Ra7 {[%clk 0:02:23.8]} 15. e6 {[%clk
0:02:20.9]} 15... fxe6 {[%clk 0:02:20.9]} 16. Nxe6 {[%clk 0:02:14.3]} 16... Bb7
{[%clk 0:02:09.2]} 17. Qd4 {[%clk 0:02:13.9]} 17... Qxe6 {[%clk 0:01:42]} 18.
Qxa7 {[%clk 0:02:09.1]} 18... Bd5 {[%clk 0:01:38]} 19. Bxb5 {[%clk 0:01:57.4]}
1-0

[Event "*** SCC Grand Prix: Titled Tuesday Blitz"]
[Site "Chess.com"]
[Date "2020.06.09"]
[Round "6"]
[White "Jungle_Jaguar"]
[Black "LisikValera"]
[Result "1-0"]
[WhiteElo "2613"]
[BlackElo "2469"]
[TimeControl "180+1"]
[EndTime "10:03:09 PDT"]
[Termination "Jungle_Jaguar won by resignation"]

1. e4 {[%clk 0:03:00.9]} 1... e6 {[%clk 0:02:59.8]} 2. d4 {[%clk 0:02:58.9]}
2... d5 {[%clk 0:03:00.2]} 3. Nc3 {[%clk 0:02:59]} 3... Bb4 {[%clk 0:02:59.2]}
4. e5 {[%clk 0:02:59.4]} 4... Ne7 {[%clk 0:02:59.5]} 5. a3 {[%clk 0:02:59.4]}
5... Bxc3+ {[%clk 0:03:00]} 6. bxc3 {[%clk 0:03:00.3]} 6... c5 {[%clk 0:03:00]}
7. h4 {[%clk 0:02:59.4]} 7... b6 {[%clk 0:02:59.1]} 8. h5 {[%clk 0:02:59.5]}
8... h6 {[%clk 0:02:59.4]} 9. Nf3 {[%clk 0:02:58.9]} 9... Ba6 {[%clk 0:02:57.4]}
10. Bxa6 {[%clk 0:02:58.1]} 10... Nxa6 {[%clk 0:02:58.3]} 11. Qe2 {[%clk
0:02:52]} 11... Nc7 {[%clk 0:02:57.4]} 12. a4 {[%clk 0:02:52.1]} 12... Qc8
{[%clk 0:02:57.3]} 13. Ba3 {[%clk 0:02:50.6]} 13... Qa6 {[%clk 0:02:57.1]} 14.
dxc5 {[%clk 0:02:48.9]} 14... Qxe2+ {[%clk 0:02:56.6]} 15. Kxe2 {[%clk 0:02:49]}
15... bxc5 {[%clk 0:02:51.8]} 16. Bxc5 {[%clk 0:02:49.9]} 16... Nc6 {[%clk
0:02:51.8]} 17. Rhb1 {[%clk 0:02:35.6]} 17... Kd7 {[%clk 0:02:50.8]} 18. Rb7
{[%clk 0:02:35.2]} 18... Rhb8 {[%clk 0:02:48.2]} 19. Rab1 {[%clk 0:02:35.5]}
19... Rxb7 {[%clk 0:02:48.2]} 20. Rxb7 {[%clk 0:02:36.4]} 20... Kc8 {[%clk
0:02:40.6]} 21. Rb1 {[%clk 0:02:35.6]} 21... Rb8 {[%clk 0:02:38.6]} 22. Rxb8+
{[%clk 0:02:34.1]} 22... Kxb8 {[%clk 0:02:38.2]} 23. Bd6 {[%clk 0:02:34.5]}
23... Kc8 {[%clk 0:02:38.2]} 24. Nd4 {[%clk 0:02:34.8]} 24... Nd8 {[%clk
0:02:18.2]} 25. Bf8 {[%clk 0:02:14.3]} 25... Ne8 {[%clk 0:02:16.4]} 26. Nb5
{[%clk 0:02:14.1]} 26... a6 {[%clk 0:02:15.8]} 27. Nd6+ {[%clk 0:02:12.4]} 27...
Nxd6 {[%clk 0:02:15.5]} 28. exd6 {[%clk 0:02:12.6]} 28... Kd7 {[%clk 0:02:11.8]}
29. Bxg7 {[%clk 0:02:12.9]} 29... Kxd6 {[%clk 0:02:06]} 30. Bxh6 {[%clk
0:02:13.1]} 30... Ke5 {[%clk 0:02:06]} 31. Bg7+ {[%clk 0:02:04.1]} 31... f6
{[%clk 0:01:58.3]} 32. h6 {[%clk 0:02:01.4]} 32... Kf5 {[%clk 0:01:57.5]} 33. h7
{[%clk 0:02:01.5]} 1-0

[Event "*** SCC Grand Prix: Titled Tuesday Blitz"]
[Site "Chess.com"]
[Date "2020.06.09"]
[Round "6"]
[White "Moon_stone123"]
[Black "temus_galaktionov"]
[Result "0-1"]
[WhiteElo "2464"]
[BlackElo "2711"]
[TimeControl "180+1"]
[EndTime "10:03:34 PDT"]
[Termination "temus_galaktionov won by resignation"]

1. Nf3 {[%clk 0:03:00.9]} 1... c6 {[%clk 0:02:58]} 2. g3 {[%clk 0:03:00.9]} 2...
g6 {[%clk 0:02:58.4]} 3. Bg2 {[%clk 0:03:01.5]} 3... Bg7 {[%clk 0:02:59.3]} 4.
O-O {[%clk 0:03:01.9]} 4... d6 {[%clk 0:02:59.7]} 5. d4 {[%clk 0:03:00.5]} 5...
Nd7 {[%clk 0:03:00.6]} 6. c4 {[%clk 0:02:57.4]} 6... e5 {[%clk 0:03:00.5]} 7.
Nc3 {[%clk 0:02:57.8]} 7... Ngf6 {[%clk 0:02:58.7]} 8. e4 {[%clk 0:02:58.1]}
8... O-O {[%clk 0:02:58.3]} 9. Re1 {[%clk 0:02:55.9]} 9... Qc7 {[%clk
0:02:57.4]} 10. h3 {[%clk 0:02:54.7]} 10... a6 {[%clk 0:02:56.2]} 11. b3 {[%clk
0:02:53.6]} 11... b5 {[%clk 0:02:55.3]} 12. Bb2 {[%clk 0:02:36.5]} 12... Bb7
{[%clk 0:02:49]} 13. d5 {[%clk 0:02:29.6]} 13... cxd5 {[%clk 0:02:47.9]} 14.
cxd5 {[%clk 0:02:26.2]} 14... Rfc8 {[%clk 0:02:47]} 15. Rc1 {[%clk 0:02:25.3]}
15... Qa5 {[%clk 0:02:45.3]} 16. Qd2 {[%clk 0:02:20.1]} 16... Nc5 {[%clk
0:02:34.9]} 17. b4 {[%clk 0:01:04.6]} 17... Qxb4 {[%clk 0:02:33.8]} 18. Ba1
{[%clk 0:00:54.1]} 18... Qa5 {[%clk 0:02:31.5]} 19. Nh4 {[%clk 0:00:48.7]} 19...
Rc7 {[%clk 0:02:21.4]} 20. Nd1 {[%clk 0:00:43.2]} 20... Qxd2 {[%clk 0:02:20.1]}
0-1